fUSD/lending_fUSD_20240220
["ID","MTS","AMOUNT","RATE_DAILY","PERIOD"]
[314566573,1708428660257,-500.0,0.00036164,2]
[314566574,1708428660269,-500.0,0.00036164,2]
[314566575,1708428660282,-1157.69,0.00036164,2]
[314566576,1708428660294,-500.0,0.00036164,2]
[314566577,1708428660307,-500.0,0.00036164,2]
[314566578,1708428660320,-500.0,0.00036164,2]
[314566579,1708428660335,-632.15,0.00036164,2]
[314566580,1708428660347,-500.0,0.00036164,2]
[314566581,1708428660359,-500.0,0.00036164,2]
[314566582,1708428660372,-500.0,0.00036164,2]
[314566583,1708428660384,-500.0,0.00036164,2]
[314566584,1708428660396,-500.0,0.00036164,2]
[314566585,1708428660409,-500.0,0.00036164,2]
[314566586,1708428660421,-500.0,0.00036164,2]
[314566587,1708428660434,-500.0,0.00036164,2]
[314566588,1708428660446,-500.0,0.00036164,2]
[314566589,1708428660458,-500.0,0.00036164,2]
[314566590,1708428660470,-500.0,0.00036164,2]
[314566591,1708428660483,-500.0,0.00036164,2]
[314566592,1708428660495,-500.0,0.00036164,2]
[314566593,1708428660507,-500.0,0.00036164,2]
[314566594,1708428660519,-500.0,0.00036164,2]
[314566595,1708428660530,-500.0,0.00036164,2]
[314566596,1708428660543,-500.0,0.00036164,2]
[314566597,1708428660555,-500.0,0.00036164,2]
[314566598,1708428660566,-500.0,0.00036164,2]
[314566599,1708428660579,-500.0,0.00036164,2]
[314566600,1708428660590,-500.0,0.00036164,2]
[314566601,1708428660603,-500.0,0.00036164,2]
[314566602,1708428660615,-183.09906284,0.00036164,2]
[314566603,1708428660626,-500.0,0.00036164,2]
[314566604,1708428660638,-500.0,0.00036164,2]
[314566605,1708428660650,-617.71054135,0.00036164,2]
[314566606,1708428660665,-500.0,0.00036164,2]
[314566607,1708428660678,-500.0,0.00036164,2]
[314566608,1708428660690,-500.0,0.00036164,2]
[314566609,1708428660702,-500.0,0.00036164,2]
[314566610,1708428660714,-500.0,0.00036164,2]
[314566611,1708428660726,-500.0,0.00036164,2]
[314566612,1708428660738,-500.0,0.00036164,2]
[314566613,1708428660750,-500.0,0.00036164,2]
[314566614,1708428660763,-565.54,0.00036164,2]
[314566615,1708428660775,-500.0,0.00036164,2]
[314566616,1708428660787,-500.0,0.00036164,2]
[314566617,1708428660799,-500.0,0.00036164,2]
[314566618,1708428660811,-500.0,0.00036164,2]
[314566619,1708428660822,-500.0,0.00036164,2]
[314566620,1708428660835,-500.0,0.00036164,2]
[314566621,1708428660848,-500.0,0.00036164,2]
[314566622,1708428660859,-500.0,0.00036164,2]
[314566623,1708428660872,-500.0,0.00036164,2]
[314566624,1708428660885,-500.0,0.00036164,2]
[314566625,1708428660898,-500.0,0.00036164,2]
[314566626,1708428660910,-500.0,0.00036164,2]
[314566627,1708428660922,-500.0,0.00036164,2]
[314566628,1708428660934,-500.0,0.00036164,2]
[314566629,1708428660946,-500.0,0.00036164,2]
[314566630,1708428660958,-500.0,0.00036164,2]
[314566631,1708428660970,-500.0,0.00036164,2]
[314566632,1708428660981,-500.0,0.00036164,2]
[314566633,1708428660993,-500.0,0.00036164,2]
[314566634,1708428661006,-500.0,0.00036164,2]
[314566635,1708428661018,-500.0,0.00036164,2]
[314566636,1708428661030,-500.0,0.00036164,2]
[314566637,1708428661043,-500.0,0.00036164,2]
[314566638,1708428661055,-507.0,0.00036164,2]
[314566639,1708428661067,-500.0,0.00036164,2]
[314566640,1708428661082,-500.0,0.00036164,2]
[314566641,1708428661094,-500.0,0.00036164,2]
[314566642,1708428661106,-500.0,0.00036164,2]
[314566643,1708428661119,-308.9806619,0.00036164,2]
[314566644,1708428661131,-500.0,0.00036164,2]
[314566645,1708428661144,-500.0,0.00036164,2]
[314566646,1708428661157,-500.0,0.00036164,2]
[314566647,1708428661169,-500.0,0.00036164,2]
[314566648,1708428661181,-593.76469822,0.00036164,2]
[314566649,1708428661194,-500.0,0.00036164,2]
[314566650,1708428661206,-500.0,0.00036164,2]
[314566651,1708428661217,-500.0,0.00036164,2]
[314566652,1708428661230,-500.0,0.00036164,2]
[314566653,1708428661242,-500.0,0.00036164,2]
[314566654,1708428661254,-500.0,0.00036164,2]
[314566655,1708428661267,-500.0,0.00036164,2]
[314566656,1708428661279,-500.0,0.00036164,2]
[314566657,1708428661291,-500.0,0.00036164,2]
[314566658,1708428661304,-507.42,0.00036164,2]
[314566659,1708428661315,-500.0,0.00036164,2]
[314566660,1708428661328,-500.0,0.00036164,2]
[314566661,1708428661341,-500.0,0.00036164,2]
[314566662,1708428661353,-500.0,0.00036164,2]
[314566663,1708428661365,-500.0,0.00036164,2]
[314566664,1708428661378,-799.18,0.00036164,2]
[314566665,1708428661392,-521.8,0.00036164,2]
[314566666,1708428661401,-500.0,0.00036164,2]
[314566667,1708428661411,-500.0,0.00036164,2]
[314566668,1708428661420,-500.0,0.00036164,2]
[314566669,1708428661430,-500.0,0.00036164,2]
[314566670,1708428661440,-500.0,0.00036164,2]
[314566671,1708428661449,-531.69415599,0.00036164,2]
[314566672,1708428661458,-500.0,0.00036164,2]
[314566673,1708428661468,-500.0,0.00036164,2]
[314566674,1708428661478,-500.0,0.00036164,2]
[314566675,1708428661489,-500.0,0.00036164,2]
[314566676,1708428661498,-157.38,0.00036164,2]
[314566677,1708428661508,-500.0,0.00036164,2]
[314566678,1708428661517,-500.0,0.00036164,2]
[314566679,1708428661526,-500.0,0.00036164,2]
[314566680,1708428661535,-500.0,0.00036164,2]
[314566681,1708428661545,-500.0,0.00036164,2]
[314566682,1708428661889,-500.0,0.00036164,2]
[314566683,1708428661914,-500.0,0.00036164,2]
[314566684,1708428661929,-500.0,0.00036164,2]
[314566685,1708428661939,-500.0,0.00036164,2]
[314566686,1708428661949,-500.0,0.00036164,2]
[314566687,1708428661959,-500.0,0.00036164,2]
[314566688,1708428661969,-506.62,0.00036164,2]
[314566689,1708428661979,-500.0,0.00036164,2]
[314566690,1708428661989,-500.0,0.00036164,2]
[314566691,1708428661999,-500.0,0.00036164,2]
[314566692,1708428662009,-500.0,0.00036164,2]
[314566693,1708428662018,-878.5,0.00036164,2]
[314566694,1708428662028,-590.31,0.00036164,2]
[314566695,1708428662038,-649.42,0.00036164,2]
[314566696,1708428662047,-500.0,0.00036164,2]
[314566697,1708428662057,-500.0,0.00036164,2]
[314566698,1708428662066,-657.53,0.00036164,2]
[314566699,1708428662077,-500.0,0.00036164,2]
[314566700,1708428662086,-500.0,0.00036164,2]
[314566701,1708428662097,-500.0,0.00036164,2]
[314566702,1708428662106,-500.0,0.00036164,2]
[314566703,1708428662115,-597.41602998,0.00036164,2]
[314566704,1708428662125,-561.53,0.00036164,2]
[314566705,1708428662134,-510.94,0.00036164,2]
[314566706,1708428662144,-500.0,0.00036164,2]
[314566707,1708428662153,-2751.38,0.00036164,2]
[314566708,1708428662163,-500.0,0.00036164,2]
[314566709,1708428662172,-537.42,0.00036164,2]
[314566710,1708428662181,-500.0,0.00036164,2]
[314566711,1708428662190,-500.0,0.00036164,2]
[314566712,1708428662200,-500.0,0.00036164,2]
[314566713,1708428662209,-500.0,0.00036164,2]
[314566714,1708428662219,-500.0,0.00036164,2]
[314566715,1708428662228,-1371.89,0.00036164,2]
[314566716,1708428662237,-500.0,0.00036164,2]
[314566717,1708428662247,-639.83,0.00036164,2]
[314566718,1708428662257,-500.0,0.00036164,2]
[314566719,1708428662266,-500.0,0.00036164,2]
[314566720,1708428662276,-2100.88,0.00036164,2]
[314566721,1708428662285,-1430.51,0.00036164,2]
[314566722,1708428662294,-500.0,0.00036164,2]
[314566723,1708428662304,-500.0,0.00036164,2]
[314566724,1708428662313,-519.67,0.00036164,2]
[314566725,1708428662322,-500.0,0.00036164,2]
[314566726,1708428662333,-500.0,0.00036164,2]
[314566727,1708428662343,-661.83,0.00036164,2]
[314566728,1708428662352,-1640.57,0.00036164,2]
[314566729,1708428662362,-1385.07,0.00036164,2]
[314566730,1708428662372,-337.80975077,0.00036164,2]
[314566731,1708428662381,-587.77983829,0.00036164,2]
[314566732,1708428662391,-500.0,0.00036164,2]
[314566733,1708428662400,-516.63,0.00036164,2]
[314566734,1708428662410,-500.0,0.00036164,2]
[314566735,1708428662420,-500.0,0.00036164,2]
[314566736,1708428662429,-500.0,0.00036164,2]
[314566737,1708428662439,-2406.39,0.00036164,2]
[314566738,1708428662449,-500.0,0.00036164,2]
[314566739,1708428662458,-1286.92,0.00036164,2]
[314566740,1708428662468,-538.32,0.00036164,2]
[314566741,1708428662478,-1144.29,0.00036164,2]
[314566742,1708428662487,-755.77,0.00036164,2]
[314566743,1708428662497,-500.0,0.00036164,2]
[314566744,1708428662507,-2001.39,0.00036164,2]
[314566745,1708428662516,-500.0,0.00036164,2]
[314566746,1708428662526,-158.41825313,0.00036164,2]
[314566747,1708428662536,-500.0,0.00036164,2]
[314566748,1708428662545,-500.0,0.00036164,2]
[314566749,1708428662555,-1514.61,0.00036164,2]
[314566750,1708428662564,-500.0,0.00036164,2]
[314566751,1708428662574,-500.0,0.00036164,2]
[314566752,1708428662584,-500.0,0.00036164,2]
[314566753,1708428662594,-841.62,0.00036164,2]
[314566754,1708428662604,-896.66,0.00036164,2]
[314566755,1708428662613,-500.0,0.00036164,2]
[314566756,1708428662623,-175.0757309,0.00036164,2]
[314566757,1708428662632,-955.19,0.00036164,2]
[314566758,1708428662642,-759.4,0.00036164,2]
[314566759,1708428662653,-1219.95,0.00036164,2]
[314566760,1708428662670,-500.0,0.00036164,2]
[314566761,1708428662680,-500.0,0.00036164,2]
[314566762,1708428662690,-4914.38,0.00036164,2]
[314566763,1708428662699,-500.0,0.00036164,2]
[314566764,1708428662710,-1960.91,0.00036164,2]
[314566765,1708428662719,-1232.52,0.00036164,2]
[314566766,1708428662729,-571.16734347,0.00036164,2]
[314566767,1708428662739,-632.25,0.00036164,2]
[314566768,1708428662749,-500.0,0.00036164,2]
[314566769,1708428662760,-500.0,0.00036164,2]
[314566770,1708428662769,-7298.9,0.00036164,2]
[314566771,1708428662779,-2283.84,0.00036164,2]
[314566772,1708428662789,-500.0,0.00036164,2]
[314566773,1708428662799,-2168.59,0.00036164,2]
[314566774,1708428662809,-20540.21,0.00036164,2]
[314566775,1708428662818,-500.0,0.00036164,2]
[314566776,1708428662828,-500.0,0.00036164,2]
[314566777,1708428662838,-2164.58,0.00036164,2]
[314566778,1708428662848,-500.0,0.00036164,2]
[314566779,1708428662858,-500.0,0.00036164,2]
[314566780,1708428662868,-500.0,0.00036164,2]
[314566781,1708428662877,-840.87,0.00036164,2]
[314566782,1708428662887,-750.12,0.00036164,2]
[314566783,1708428662897,-881.59,0.00036164,2]
[314566784,1708428662907,-500.0,0.00036164,2]
[314566785,1708428662916,-1166.03,0.00036164,2]
[314566786,1708428662926,-500.0,0.00036164,2]
[314566787,1708428662935,-501.87,0.00036164,2]
[314566788,1708428662945,-4997.98,0.00036164,2]
[314566789,1708428662955,-500.0,0.00036164,2]
[314566790,1708428662965,-500.0,0.00036164,2]
[314566791,1708428662974,-880.32,0.00036164,2]
[314566792,1708428662984,-690.76,0.00036164,2]
[314566793,1708428662993,-500.0,0.00036164,2]
[314566794,1708428663003,-500.0,0.00036164,2]
[314566795,1708428663012,-1448.63,0.00036164,2]
[314566796,1708428663022,-500.0,0.00036164,2]
[314566797,1708428663032,-303.03951068,0.00036164,2]
[314566798,1708428663041,-905.43,0.00036164,2]
[314566799,1708428663051,-500.0,0.00036164,2]
[314566800,1708428663061,-500.0,0.00036164,2]
[314566801,1708428663070,-1005.05,0.00036164,2]
[314566802,1708428663081,-3198.4,0.00036164,2]
[314566803,1708428663091,-759.38,0.00036164,2]
[314566804,1708428663101,-500.0,0.00036164,2]
[314566805,1708428663110,-500.0,0.00036164,2]
[314566806,1708428663120,-500.0,0.00036164,2]
[314566807,1708428663130,-1446.16,0.00036164,2]
[314566808,1708428663139,-649.83,0.00036164,2]
[314566809,1708428663149,-1827.29,0.00036164,2]
[314566810,1708428663158,-622.17,0.00036164,2]
[314566811,1708428663168,-838.08,0.00036164,2]
[314566812,1708428663177,-500.0,0.00036164,2]
[314566813,1708428663187,-646.6200857,0.00036164,2]
[314566814,1708428663196,-678.18,0.00036164,2]
[314566815,1708428663205,-727.92,0.00036164,2]
[314566816,1708428663214,-907.49,0.00036164,2]
[314566817,1708428663223,-6265.46,0.00036164,2]
[314566818,1708428663233,-500.0,0.00036164,2]
[314566819,1708428663242,-859.39,0.00036164,2]
[314566820,1708428663252,-500.0,0.00036164,2]
[314566821,1708428663261,-500.0,0.00036164,2]
[314566822,1708428663270,-500.0,0.00036164,2]
[314566823,1708428663280,-866.49,0.00036164,2]
[314566824,1708428663290,-500.0,0.00036164,2]
[314566825,1708428663300,-3587.46,0.00036164,2]
[314566826,1708428663310,-500.0,0.00036164,2]
[314566827,1708428663320,-500.0,0.00036164,2]
[314566828,1708428663331,-1001.76,0.00036164,2]
[314566829,1708428663341,-500.0,0.00036164,2]
[314566830,1708428663350,-600.49,0.00036164,2]
[314566831,1708428663360,-737.98,0.00036164,2]
[314566832,1708428663369,-500.0,0.00036164,2]
[314566833,1708428663379,-1615.46,0.00036164,2]
[314566834,1708428663388,-500.0,0.00036164,2]
[314566835,1708428663398,-3233.84,0.00036164,2]
[314566836,1708428663407,-2658.71,0.00036164,2]
[314566837,1708428663417,-804.08,0.00036164,2]
[314566838,1708428663426,-759.27,0.00036164,2]
[314566839,1708428663435,-500.0,0.00036164,2]
[314566840,1708428663444,-1025.73,0.00036164,2]
[314566841,1708428663454,-1374.99,0.00036164,2]
[314566842,1708428663463,-633.58,0.00036164,2]
[314566843,1708428663472,-654.59,0.00036164,2]
[314566844,1708428663482,-500.0,0.00036164,2]
[314566845,1708428663491,-500.0,0.00036164,2]
[314566846,1708428663500,-543.56500636,0.00036164,2]
[314566847,1708428663509,-720.34,0.00036164,2]
[314566848,1708428663518,-500.0,0.00036164,2]
[314566849,1708428663528,-750.78,0.00036164,2]
[314566850,1708428663537,-1574.12,0.00036164,2]
[314566851,1708428663546,-500.0,0.00036164,2]
[314566852,1708428663555,-552.85,0.00036164,2]
[314566853,1708428663564,-1149.16,0.00036164,2]
[314566854,1708428663573,-810.09,0.00036164,2]
[314566855,1708428663585,-1155.56,0.00036164,2]
[314566856,1708428663594,-2476.69,0.00036164,2]
[314566857,1708428663604,-1254.68,0.00036164,2]
[314566858,1708428663613,-1124.17,0.00036164,2]
[314566859,1708428663623,-1076.93,0.00036164,2]
[314566860,1708428663632,-590.14,0.00036164,2]
[314566861,1708428663642,-768.15,0.00036164,2]
[314566862,1708428663651,-621.95,0.00036164,2]
[314566863,1708428663664,-1180.17,0.00036164,2]
[314566864,1708428663674,-939.54,0.00036164,2]
[314566865,1708428663684,-500.0,0.00036164,2]
[314566866,1708428663693,-939.56,0.00036164,2]
[314566867,1708428663702,-500.0,0.00036164,2]
[314566868,1708428663711,-500.0,0.00036164,2]
[314566869,1708428663720,-1613.29,0.00036164,2]
[314566870,1708428663730,-686.66,0.00036164,2]
[314566871,1708428663739,-840.36,0.00036164,2]
[314566872,1708428663750,-640.13,0.00036164,2]
[314566873,1708428663760,-3991.12,0.00036164,2]
[314566874,1708428663769,-520.0,0.00036164,2]
[314566875,1708428663778,-1023.38,0.00036164,2]
[314566876,1708428663787,-500.0,0.00036164,2]
[314566877,1708428663797,-692.3,0.00036164,2]
[314566878,1708428663806,-1621.7,0.00036164,2]
[314566879,1708428663815,-500.0,0.00036164,2]
[314566880,1708428663825,-304.54182785,0.00036164,2]
[314566881,1708428663835,-500.0,0.00036164,2]
[314566882,1708428663845,-8295.38,0.00036164,2]
[314566883,1708428663859,-2486.09,0.00036164,2]
[314566884,1708428663868,-841.07,0.00036164,2]
[314566885,1708428663878,-235.66812718,0.00036164,2]
[314566886,1708428663888,-500.0,0.00036164,2]
[314566887,1708428663898,-1744.2,0.00036164,2]
[314566888,1708428663907,-500.0,0.00036164,2]
[314566889,1708428663917,-425.40707127,0.00036164,2]
[314566890,1708428663926,-1344.84,0.00036164,2]
[314566891,1708428663935,-673.36,0.00036164,2]
[314566892,1708428663945,-500.0,0.00036164,2]
[314566893,1708428663955,-685.99,0.00036164,2]
[314566894,1708428663965,-500.0,0.00036164,2]
[314566895,1708428663974,-500.0,0.00036164,2]
[314566896,1708428663984,-1329.24,0.00036164,2]
[314566897,1708428663993,-2449.79,0.00036164,2]
[314566898,1708428664003,-500.0,0.00036164,2]
[314566899,1708428664013,-500.0,0.00036164,2]
[314566900,1708428664023,-856.56,0.00036164,2]
[314566901,1708428664033,-500.0,0.00036164,2]
[314566902,1708428664042,-500.0,0.00036164,2]
[314566903,1708428664052,-500.0,0.00036164,2]
[314566904,1708428664062,-500.0,0.00036164,2]
[314566905,1708428664071,-504.39,0.00036164,2]
[314566906,1708428664082,-559.34,0.00036164,2]
[314566907,1708428664091,-500.0,0.00036164,2]
[314566908,1708428664101,-771.78,0.00036164,2]
[314566909,1708428664110,-500.0,0.00036164,2]
[314566910,1708428664120,-500.0,0.00036164,2]
[314566911,1708428664129,-1060.07,0.00036164,2]
[314566912,1708428664139,-682.05,0.00036164,2]
[314566913,1708428664149,-547.61,0.00036164,2]
[314566914,1708428664159,-828.05,0.00036164,2]
[314566915,1708428664169,-628.37,0.00036164,2]
[314566916,1708428664179,-500.0,0.00036164,2]
[314566917,1708428664188,-500.0,0.00036164,2]
[314566918,1708428664198,-887.17,0.00036164,2]
[314566919,1708428664208,-500.0,0.00036164,2]
[314566920,1708428664217,-673.43,0.00036164,2]
[314566921,1708428664227,-500.0,0.00036164,2]
[314566922,1708428664237,-734.03,0.00036164,2]
[314566923,1708428664247,-1738.82,0.00036164,2]
[314566924,1708428664257,-500.0,0.00036164,2]
[314566925,1708428664267,-500.0,0.00036164,2]
[314566926,1708428664277,-543.22,0.00036164,2]
[314566927,1708428664286,-779.08,0.00036164,2]
[314566928,1708428664296,-1012.35,0.00036164,2]
[314566929,1708428664306,-684.48,0.00036164,2]
[314566930,1708428664315,-500.0,0.00036164,2]
[314566931,1708428664325,-807.34,0.00036164,2]
[314566932,1708428664337,-986.67,0.00036164,2]
[314566933,1708428664346,-500.0,0.00036164,2]
[314566934,1708428664356,-1647.99,0.00036164,2]
[314566935,1708428664365,-500.0,0.00036164,2]
[314566936,1708428664375,-2456.88,0.00036164,2]
[314566937,1708428664385,-500.0,0.00036164,2]
[314566938,1708428664399,-500.0,0.00036164,2]
[314566939,1708428664409,-500.0,0.00036164,2]
[314566940,1708428664419,-1042.87,0.00036164,2]
[314566941,1708428664430,-500.0,0.00036164,2]
[314566942,1708428664440,-1470.47,0.00036164,2]
[314566943,1708428664449,-500.0,0.00036164,2]
[314566944,1708428664459,-2585.94,0.00036164,2]
[314566945,1708428664469,-500.0,0.00036164,2]
[314566946,1708428664479,-842.98,0.00036164,2]
[314566947,1708428664489,-717.33,0.00036164,2]
[314566948,1708428664500,-412.6,0.00036164,2]
[314566949,1708428664510,-36190.84,0.000362,7]
[314566950,1708428664520,-161.1,0.00036223,2]
[314566951,1708428664530,-300.0,0.00036238,2]
[314566952,1708428664540,-151.0212031,0.00036248,6]
[314566953,1708428664550,-2202.0,0.00036251,2]
[314566954,1708428664559,-500.0,0.00036259,2]
[314566955,1708428664569,-2859.22,0.00036259,2]
[314566956,1708428664580,-1223.88,0.00036259,2]
[314566957,1708428664590,-500.0,0.00036259,2]
[314566958,1708428664600,-500.0,0.00036259,2]
[314566959,1708428664610,-200.0,0.0003627,7]
[314566960,1708428664619,-200.0,0.0003627,7]
[314566961,1708428664629,-200.0,0.0003627,7]
[314566962,1708428664639,-200.0,0.0003627,7]
[314566963,1708428664653,-2512334.85853536,0.0003628,2]
[314566964,1708428664664,-1141.71417735,0.00036291,9]
[314566965,1708428664674,-57038.05,0.000363,7]
[314566966,1708428664685,-781.09895412,0.00036301,30]
[314566967,1708428664695,-320.0,0.00036331,2]
[314566968,1708428664705,-200.0,0.0003636,2]
[314566969,1708428664715,-1452.3764821,0.00036378,2]
[314566970,1708428664726,-143853.38684173,0.00036389,2]
[314566971,1708428664738,-143853.3868417,0.00036389,2]
[314566972,1708428664748,-143853.3868417,0.00036389,2]
[314566973,1708428664758,-143853.3868417,0.00036389,2]
[314566974,1708428664768,-143853.3868417,0.00036389,2]
[314566975,1708428664777,-11082.22773167,0.00036389,2]
[314566976,1708428664787,-314.91991253,0.00036438,2]
[314566977,1708428664797,-500.0,0.00036438,2]
[314566978,1708428664807,-500.0,0.00036438,2]
[314566979,1708428664817,-500.0,0.00036438,2]
[314566980,1708428664826,-500.0,0.00036438,2]
[314566981,1708428664837,-500.0,0.00036438,2]
[314566982,1708428664847,-641.09,0.00036438,2]
[314566983,1708428664858,-500.0,0.00036438,2]
[314566984,1708428664868,-500.0,0.00036438,2]
[314566985,1708428664878,-500.0,0.00036438,2]
[314566986,1708428664888,-500.0,0.00036438,2]
[314566987,1708428664899,-500.0,0.00036438,2]
[314566988,1708428664909,-500.0,0.00036438,2]
[314566989,1708428664922,-500.0,0.00036438,2]
[314566990,1708428664932,-500.0,0.00036438,2]
[314566991,1708428664943,-500.0,0.00036438,2]
[314566992,1708428664953,-500.0,0.00036438,2]
[314566993,1708428664962,-500.0,0.00036438,2]
[314566994,1708428664972,-500.0,0.00036438,2]
[314566995,1708428664982,-500.0,0.00036438,2]
[314566996,1708428664992,-512.86,0.00036438,2]
[314566997,1708428665002,-500.0,0.00036438,2]
[314566998,1708428665012,-500.0,0.00036438,2]
[314566999,1708428665023,-500.0,0.00036438,2]
[314567000,1708428665033,-515.94016133,0.00036438,2]
[314567001,1708428665044,-500.0,0.00036438,2]
[314567002,1708428665055,-500.0,0.00036438,2]
[314567003,1708428665066,-500.0,0.00036438,2]
[314567004,1708428665077,-500.0,0.00036438,2]
[314567005,1708428665088,-500.0,0.00036438,2]
[314567006,1708428665322,-520.90614429,0.00036438,2]
[314567007,1708428665334,-500.0,0.00036438,2]
[314567008,1708428665344,-500.0,0.00036438,2]
[314567009,1708428665355,-432.35056296,0.00036438,2]
[314567010,1708428665365,-1116.86,0.00036438,2]
[314567011,1708428665376,-500.0,0.00036438,2]
[314567012,1708428665386,-962.0,0.00036438,2]
[314567013,1708428665396,-500.0,0.00036438,2]
[314567014,1708428665406,-500.0,0.00036438,2]
[314567015,1708428665416,-500.0,0.00036438,2]
[314567016,1708428665426,-500.0,0.00036438,2]
[314567017,1708428665436,-500.0,0.00036438,2]
[314567018,1708428665446,-500.0,0.00036438,2]
[314567019,1708428665456,-500.0,0.00036438,2]
[314567020,1708428665466,-500.0,0.00036438,2]
[314567021,1708428665476,-500.0,0.00036438,2]
[314567022,1708428665486,-500.0,0.00036438,2]
[314567023,1708428665496,-1157.69,0.00036438,2]
[314567024,1708428665506,-500.0,0.00036438,2]
[314567025,1708428665516,-500.0,0.00036438,2]
[314567026,1708428665525,-500.0,0.00036438,2]
[314567027,1708428665535,-632.15,0.00036438,2]
[314567028,1708428665545,-500.0,0.00036438,2]
[314567029,1708428665555,-500.0,0.00036438,2]
[314567030,1708428665565,-500.0,0.00036438,2]
[314567031,1708428665574,-500.0,0.00036438,2]
[314567032,1708428665585,-500.0,0.00036438,2]
[314567033,1708428665595,-500.0,0.00036438,2]
[314567034,1708428665604,-500.0,0.00036438,2]
[314567035,1708428665613,-500.0,0.00036438,2]
[314567036,1708428665623,-500.0,0.00036438,2]
[314567037,1708428665632,-500.0,0.00036438,2]
[314567038,1708428665643,-500.0,0.00036438,2]
[314567039,1708428665655,-500.0,0.00036438,2]
[314567040,1708428665666,-500.0,0.00036438,2]
[314567041,1708428665676,-500.0,0.00036438,2]
[314567042,1708428665686,-500.0,0.00036438,2]
[314567043,1708428665697,-500.0,0.00036438,2]
[314567044,1708428665707,-500.0,0.00036438,2]
[314567045,1708428665716,-500.0,0.00036438,2]
[314567046,1708428665727,-500.0,0.00036438,2]
[314567047,1708428665738,-500.0,0.00036438,2]
[314567048,1708428665748,-500.0,0.00036438,2]
[314567049,1708428665758,-500.0,0.00036438,2]
[314567050,1708428665768,-500.0,0.00036438,2]
[314567051,1708428665778,-432.08352983,0.00036438,2]
[314567052,1708428665788,-333.36335268,0.00036438,2]
[314567053,1708428665798,-500.0,0.00036438,2]
[314567054,1708428665807,-500.0,0.00036438,2]
[314567055,1708428665818,-500.0,0.00036438,2]
[314567056,1708428665828,-500.0,0.00036438,2]
[314567057,1708428665839,-565.54,0.00036438,2]
[314567058,1708428665850,-500.0,0.00036438,2]
[314567059,1708428665860,-500.0,0.00036438,2]
[314567060,1708428665870,-500.0,0.00036438,2]
[314567061,1708428665880,-500.0,0.00036438,2]
[314567062,1708428665891,-500.0,0.00036438,2]
[314567063,1708428665900,-500.0,0.00036438,2]
[314567064,1708428665910,-500.0,0.00036438,2]
[314567065,1708428665920,-500.0,0.00036438,2]
[314567066,1708428665930,-500.0,0.00036438,2]
[314567067,1708428665940,-500.0,0.00036438,2]
[314567068,1708428665950,-500.0,0.00036438,2]
[314567069,1708428665960,-500.0,0.00036438,2]
[314567070,1708428665969,-500.0,0.00036438,2]
[314567071,1708428665978,-500.0,0.00036438,2]
[314567072,1708428665988,-500.0,0.00036438,2]